[Event "150 Years SG Braunschweig"]
[Site "Brunswick"]
[Date "2019.10.21"]
[Round "1.4"]
[White "Pajeken, Jakob Leon"]
[Black "Reuker, Jari"]
[Result "0-1"]
[ECO "E63"]
[WhiteElo "2323"]
[BlackElo "2394"]
[Annotator "NA"]
[PlyCount "80"]
[EventDate "2019.10.21"]
[EventType "tourn"]
[EventCountry "GER"]
[SourceTitle "playchess.com"]
[Source "ChessBase"]
[SourceQuality "1"]
[TimeControl "40/5400+30:900+30"]

1. d4 {[%emt 0:00:00]} Nf6 {[%emt 0:00:00]} 2. c4 {[%emt 0:00:00]} g6 {[%emt 0:00:05]} 3. g3 {[%emt 0:00:00]} Bg7 {[%emt 0:00:08]} 4. Bg2 {[%emt 0:00:00]} O-O {[%emt 0:00:57]} 5. Nc3 {[%emt 0:00:21]} d6 {[%emt 0:00:35]} 6. Nf3 {[%emt 0:00:07]} Nc6 {[%emt 0:01:48]} 7. O-O {[%emt 0:00:24]} a6 {[%emt 0:00:16]} 8. b3 {[%emt 0:00:13]} Rb8 {[%emt 0:06:03]} 9. d5 {[%emt 0:00:26]} Na5 {[%emt 0:02:59]} 10. Bg5 {[%emt 0:00:12]} h6 {[%emt 0:07:24]} 11. Bd2 {[%emt 0:00:04]} c5 {[%emt 0:03:49]} 12. dxc6 {[%emt 0:00:05]} Nxc6 {[%emt 0:03:30]} 13. Rc1 {[%emt 0:00:22]} Bf5 {[%emt 0:04:57]} 14. Ne1 {[%emt 0:00:11]} Qd7 {[%emt 0:04:03]} 15. Nd5 {[%emt 0:07:57]} Ne4 {[%emt 0:18:29]} 16. Be3 {[%emt 0:01:20]} g5 {[%emt 0:08:00]} 17. b4 {[%emt 0:26:12]} e6 {[%emt 0:02:40]} 18. Nb6 {[%emt 0:01:27]} Qe7 {[%emt 0:01:53]} 19. Nd3 {[%emt 0:25:53]} Rfd8 {[%emt 0:04:05]} 20. b5 {[%emt 0:03:35]} axb5 {[%emt 0:01:34]} 21. cxb5 {[%emt 0:00:17]} Nd4 {[%emt 0:02:23]} 22. a4 {[%emt 0:04:46]} d5 {[%emt 0:19:18]} 23. f3 {[%emt 0:04:04]} Qa3 {[%emt 0:01:09]} 24. fxe4 {[%emt 0:05:52]} dxe4 {[%emt 0:00:02]} 25. Nc4 {[%emt 0:00:22]} Qa2 {[%emt 0:01:25]} 26. Nb4 {[%emt 0:04:44]} Nxe2+ {[%emt 0:01:04]} 27. Kh1 {[%emt 0:00:10]} Rxd1 {[%emt 0:01:11]} 28. Nxa2 {[%emt 0:01:15]} Nxc1 {[%emt 0:00:30]} 29. Nxc1 {[%emt 0:01:40]} Rbd8 {[%emt 0:01:34]} 30. Nb3 {[%emt 0:02:45]} Bg4 {[%emt 0:00:58]} 31. Nc5 {[%emt 0:01:45]} Be2 {[%emt 0:00:29]} 32. Kg1 {[%emt 0:05:41]} Bxc4 {[%emt 0:00:20]} 33. Rxd1 {[%emt 0:00:24]} Rxd1+ {[%emt 0:00:02]} 34. Kf2 {[%emt 0:00:04]} f5 {[%emt 0:01:12]} 35. Nxb7 {[%emt 0:01:26]} Ra1 {[%emt 0:00:54]} 36. Nc5 {[%emt 0:01:30]} Ra2+ {[%emt 0:00:06]} 37. Kg1 {[%emt 0:00:04]} Ra1+ {[%emt 0:00:02]} 38. Kf2 {[%emt 0:00:05]} Bc3 {[%emt 0:00:23]} 39. b6 {[%emt 0:02:29]} Be1+ {[%emt 0:00:18]} 40. Kg1 {[%emt 0:00:05]} Ba5+ {[%emt 0:01:39]} 0-1

[Event "150 Years SG Braunschweig"]
[Site "Brunswick"]
[Date "2019.10.21"]
[Round "1.5"]
[White "Buckels, Valentin"]
[Black "Olsen, Filip Boe"]
[Result "1-0"]
[ECO "D02"]
[WhiteElo "2442"]
[BlackElo "2380"]
[Annotator "NA"]
[PlyCount "65"]
[EventDate "2019.10.21"]
[EventType "tourn"]
[EventCountry "GER"]
[SourceTitle "playchess.com"]
[Source "ChessBase"]
[SourceQuality "1"]
[TimeControl "40/5400+30:900+30"]

1. d4 {[%emt 0:00:00]} Nf6 {[%emt 0:00:00]} 2. Nf3 {[%emt 0:00:00]} d5 {[%emt 0:00:00]} 3. Bf4 {[%emt 0:01:30]} c5 {[%emt 0:00:15]} 4. e3 {[%emt 0:00:17]} Nc6 {[%emt 0:00:24]} 5. Nbd2 {[%emt 0:00:18]} cxd4 {[%emt 0:01:26]} 6. exd4 {[%emt 0:00:14]} Bf5 {[%emt 0:00:24]} 7. c3 {[%emt 0:00:25]} e6 {[%emt 0:00:38]} 8. Qb3 {[%emt 0:00:39]} Bd6 {[%emt 0:03:07]} 9. Qxb7 {[%emt 0:03:03]} Bxf4 {[%emt 0:06:24]} 10. Qxc6+ {[%emt 0:00:13]} Kf8 {[%emt 0:00:58]} 11. Ne5 {[%emt 0:01:31]} Rb8 {[%emt 0:16:57]} 12. Qc5+ {[%emt 0:16:04]} Kg8 {[%emt 0:03:11]} 13. Qxa7 {[%emt 0:00:45]} Qe8 {[%emt 0:21:06]} 14. Ndf3 {[%emt 0:20:15]} Rxb2 {[%emt 0:10:12]} 15. Bd3 {[%emt 0:02:48]} Ne4 {[%emt 0:06:48]} 16. O-O {[%emt 0:03:43]} h6 {[%emt 0:12:22]} 17. Rab1 {[%emt 0:06:43]} Rxb1 {[%emt 0:00:48]} 18. Rxb1 {[%emt 0:00:15]} Kh7 {[%emt 0:02:17]} 19. Rb7 {[%emt 0:16:13]} Qa8 {[%emt 0:06:52]} 20. g4 {[%emt 0:05:56]} Qxa7 {[%emt 0:02:35]} 21. Rxa7 {[%emt 0:00:08]} Bg6 {[%emt 0:00:09]} 22. Nxg6 {[%emt 0:06:36]} fxg6 {[%emt 0:00:25]} 23. Nh4 {[%emt 0:01:38]} Rc8 {[%emt 0:02:04]} 24. c4 {[%emt 0:01:31]} Bg5 {[%emt 0:01:01]} 25. Nf3 {[%emt 0:01:26]} Bf6 {[%emt 0:00:15]} 26. c5 {[%emt 0:00:33]} Ng5 {[%emt 0:01:42]} 27. Nxg5+ {[%emt 0:04:52]} hxg5 {[%emt 0:00:26]} 28. Ba6 {[%emt 0:00:33]} Rc6 {[%emt 0:00:39]} 29. Bb5 {[%emt 0:00:34]} Rc8 {[%emt 0:00:11]} 30. Bd7 {[%emt 0:02:15]} Rf8 {[%emt 0:00:53]} 31. Ra3 {[%emt 0:01:52]} Bxd4 {[%emt 0:00:29]} 32. Rh3+ {[%emt 0:00:15]} Kg8 {[%emt 0:00:09]} 33. Bxe6+ {[%emt 0:00:05]} 1-0

[Event "150 Years SG Braunschweig"]
[Site "Brunswick"]
[Date "2019.10.24"]
[Round "7.3"]
[White "Olsen, Filip Boe"]
[Black "Lubbe, Nikolas"]
[Result "0-1"]
[ECO "E04"]
[WhiteElo "2380"]
[BlackElo "2431"]
[Annotator "RC"]
[PlyCount "120"]
[EventDate "2019.10.21"]
[EventType "tourn"]
[EventCountry "GER"]
[SourceTitle "playchess.com"]
[Source "ChessBase"]
[SourceQuality "1"]
[TimeControl "40/5400+30:900+30"]

1. d4 {[%emt 0:00:00]} d5 {[%emt 0:00:00]} 2. c4 {[%emt 0:00:00]} e6 {[%emt 0:00:00]} 3. Nf3 {[%emt 0:00:00]} Nf6 {[%emt 0:00:00]} 4. g3 {[%emt 0:00:00]} dxc4 {[%emt 0:00:00]} 5. Bg2 {[%emt 0:00:12]} Bb4+ {[%emt 0:00:04]} 6. Bd2 {[%emt 0:00:08]} a5 {[%emt 0:00:06]} 7. Qc2 {[%emt 0:00:25]} Bxd2+ {[%emt 0:00:12]} 8. Qxd2 {[%emt 0:00:10]} c6 {[%emt 0:01:35]} 9. a4 {[%emt 0:00:10]} Ne4 {[%emt 0:00:14]} 10. Qf4 {[%emt 0:00:24]} Qb6 {[%emt 0:00:43]} 11. O-O {[%emt 0:00:34]} Qxb2 {[%emt 0:00:40]} 12. Na3 {[%emt 0:00:22]} Nc3 {[%emt 0:00:25]} 13. Qe3 {[%emt 0:00:12]} Nxe2+ {[%emt 0:02:05]} 14. Kh1 {[%emt 0:00:08]} Nc3 {[%emt 0:00:05]} 15. Ne5 {[%emt 0:01:07]} O-O {[%emt 0:06:07]} 16. Rfc1 {[%emt 0:00:36]} Nd5 {[%emt 0:00:23]} 17. Bxd5 {[%emt 0:00:08]} exd5 {[%emt 0:01:11]} 18. Rcb1 {[%emt 0:00:11]} Qb4 {[%emt 0:00:11]} 19. Rxb4 {[%emt 0:00:11]} axb4 {[%emt 0:00:02]} 20. Naxc4 {[%emt 0:00:17]} dxc4 {[%emt 0:00:07]} 21. Nxc4 {[%emt 0:00:12]} Be6 {[%emt 0:01:26]} 22. Nd6 {[%emt 0:00:39]} Nd7 {[%emt 0:07:16]} 23. a5 {[%emt 0:03:31]} b3 {[%emt 0:15:52]} 24. Qc3 {[%emt 0:05:14]} Rfb8 {[%emt 0:18:46]} 25. f3 {[%emt 0:11:22]} Ra6 {[%emt 0:01:26]} 26. Re1 {[%emt 0:08:36]} c5 {[%emt 0:17:38]} 27. dxc5 {[%emt 0:04:30]} Rc6 {[%emt 0:02:44]} 28. Ne4 {[%emt 0:01:52]} Rbc8 {[%emt 0:03:16]} 29. Qb4 {[%emt 0:16:28]} Nxc5 {[%emt 0:01:12]} 30. Nxc5 {[%emt 0:01:07]} Rxc5 {[%emt 0:00:01]} 31. Rxe6 {[%emt 0:00:53]} fxe6 {[%emt 0:02:22]} 32. Qxb3 {[%emt 0:00:14]} Rc2 {[%emt 0:03:14]} 33. Qxb7 {[%emt 0:01:36]} Rd8 {[%emt 0:00:34]} 34. Qb1 {[%emt 0:02:43]} Rdd2 {[%emt 0:00:26]} 35. Qf1 {[%emt 0:01:46]} Ra2 {[%emt 0:03:48]} 36. a6 {[%emt 0:00:30]} Rxh2+ {[%emt 0:01:33]} 37. Kg1 {[%emt 0:00:07]} Rhb2 {[%emt 0:00:45]} 38. a7 {[%emt 0:04:04]} Rxa7 {[%emt 0:00:25]} 39. Qc1 {[%emt 0:00:22]} Rab7 {[%emt 0:02:35]} 40. Qc4 {[%emt 0:00:52]} Kf7 {[%emt 0:01:29]} 41. Qf4+ {[%emt 0:15:50]} Ke8 {[%emt 0:15:51]} 42. Qc4 {[%emt 0:01:51]} R2b6 {[%emt 0:05:08]} 43. Kg2 {[%emt 0:00:44]} h6 {[%emt 0:00:20]} 44. Qf4 {[%emt 0:02:11]} Rb5 {[%emt 0:02:08]} 45. Qe4 {[%emt 0:03:22]} Kf7 {[%emt 0:00:03]} 46. Qc6 {[%emt 0:02:25]} R5b6 {[%emt 0:00:54]} 47. Qe4 {[%emt 0:00:17]} Rb4 {[%emt 0:01:10]} 48. Qc6 {[%emt 0:00:36]} h5 {[%emt 0:00:00]} 49. Qc5 {[%emt 0:00:00]} R4b5 {[%emt 0:00:00]} 50. Qc4 {[%emt 0:00:00]} Rb1 {[%emt 0:00:00]} 51. Qf4+ {[%emt 0:00:00]} Kg8 {[%emt 0:00:00]} 52. g4 {[%emt 0:00:00]} hxg4 {[%emt 0:00:00]} 53. fxg4 {[%emt 0:00:00]} R7b2+ {[%emt 0:00:00]} 54. Kh3 {[%emt 0:00:00]} Rb3+ {[%emt 0:00:00]} 55. Kg2 {[%emt 0:00:00]} R1b2+ {[%emt 0:00:00]} 56. Kg1 {[%emt 0:00:00]} Rc2 {[%emt 0:00:00]} 57. Qf1 {[%emt 0:00:00]} Rbb2 {[%emt 0:00:00]} 58. Kh1 {[%emt 0:00:00]} g6 {[%emt 0:00:00]} 59. Qg1 {[%emt 0:00:00]} e5 {[%emt 0:00:00]} 60. g5 {[%emt 0:00:00]} Rh2+ {[%emt 0:08:28]} 0-1

[Event "150 Years SG Braunschweig"]
[Site "Brunswick"]
[Date "2019.10.25"]
[Round "8.1"]
[White "Gajek, Radoslaw"]
[Black "Lubbe, Melanie"]
[Result "0-1"]
[ECO "B09"]
[WhiteElo "2411"]
[BlackElo "2242"]
[Annotator "ChessBase"]
[PlyCount "76"]
[EventDate "2019.10.21"]
[EventType "tourn"]
[EventCountry "GER"]
[SourceTitle "playchess.com"]
[Source "ChessBase"]
[SourceQuality "1"]
[TimeControl "40/5400+30:900+30"]

1. e4 {[%emt 0:00:00]} d6 {[%emt 0:00:00]} 2. d4 {[%emt 0:00:00]} Nf6 {[%emt 0:00:00]} 3. Nc3 {[%emt 0:00:00]} g6 {[%emt 0:00:00]} 4. f4 {[%emt 0:00:00]} Bg7 {[%emt 0:00:15]} 5. Nf3 {[%emt 0:00:12]} O-O {[%emt 0:00:34]} 6. e5 {[%emt 0:00:15]} dxe5 {[%emt 0:02:16]} 7. fxe5 {[%emt 0:00:11]} Nd5 {[%emt 0:00:56]} 8. Bc4 {[%emt 0:00:05]} Be6 {[%emt 0:12:34]} 9. Bxd5 {[%emt 0:00:19]} Bxd5 {[%emt 0:00:05]} 10. Nxd5 {[%emt 0:00:07]} Qxd5 {[%emt 0:00:04]} 11. Qe2 {[%emt 0:00:05]} b5 {[%emt 0:19:27]} 12. O-O {[%emt 0:02:47]} Nc6 {[%emt 0:04:07]} 13. c3 {[%emt 0:00:07]} b4 {[%emt 0:13:05]} 14. Rd1 {[%emt 0:05:04]} bxc3 {[%emt 0:03:32]} 15. bxc3 {[%emt 0:00:45]} Na5 {[%emt 0:00:03]} 16. Ba3 {[%emt 0:05:12]} Rfe8 {[%emt 0:00:18]} 17. Rab1 {[%emt 0:01:44]} Nc4 {[%emt 0:04:52]} 18. Bc5 {[%emt 0:00:07]} a5 {[%emt 0:01:06]} 19. Rb5 {[%emt 0:11:42]} f6 {[%emt 0:04:58]} 20. e6 {[%emt 0:15:47]} Ra6 {[%emt 0:07:45]} 21. Re1 {[%emt 0:02:45]} Bh6 {[%emt 0:00:47]} 22. a4 {[%emt 0:01:36]} Ne3 {[%emt 0:05:58]} 23. Bb6 {[%emt 0:05:26]} Qc6 {[%emt 0:06:17]} 24. Bxa5 {[%emt 0:01:15]} Rea8 {[%emt 0:00:51]} 25. Bb4 {[%emt 0:06:47]} Rxa4 {[%emt 0:00:04]} 26. d5 {[%emt 0:02:33]} Qa6 {[%emt 0:03:09]} 27. Rc5 {[%emt 0:21:06]} Qa7 {[%emt 0:00:51]} 28. Qd3 {[%emt 0:07:09]} Ra1 {[%emt 0:00:10]} 29. Kf2 {[%emt 0:02:07]} Rxe1 {[%emt 0:04:39]} 30. Nxe1 {[%emt 0:01:06]} Qa1 {[%emt 0:00:24]} 31. c4 {[%emt 0:05:28]} Qb2+ {[%emt 0:00:59]} 32. Bd2 {[%emt 0:00:43]} Ng4+ {[%emt 0:03:55]} 33. Ke2 {[%emt 0:00:49]} Qe5+ {[%emt 0:00:06]} 34. Kf1 {[%emt 0:00:53]} Bxd2 {[%emt 0:01:03]} 35. Qxd2 {[%emt 0:00:24]} Ra1 {[%emt 0:00:46]} 36. h3 {[%emt 0:01:31]} Qf5+ {[%emt 0:01:03]} 37. Kg1 {[%emt 0:00:27]} Qc2 {[%emt 0:00:30]} 38. Qa5 {[%emt 0:01:46]} Qf2+ {[%emt 0:00:07]} 0-1

[Event "150 Years SG Braunschweig"]
[Site "Brunswick"]
[Date "2019.10.25"]
[Round "8.2"]
[White "Krasenkow, Michal"]
[Black "Meshkovs, Nikita"]
[Result "1/2-1/2"]
[ECO "E46"]
[WhiteElo "2622"]
[BlackElo "2548"]
[Annotator "ChessBase"]
[PlyCount "97"]
[EventDate "2019.10.21"]
[EventType "tourn"]
[EventCountry "GER"]
[SourceTitle "playchess.com"]
[Source "ChessBase"]
[SourceQuality "1"]
[TimeControl "40/5400+30:900+30"]

1. d4 {[%emt 0:00:00]} Nf6 {[%emt 0:00:00]} 2. c4 {[%emt 0:00:00]} e6 {[%emt 0:00:00]} 3. Nc3 {[%emt 0:00:00]} Bb4 {[%emt 0:00:45]} 4. e3 {[%emt 0:00:00]} O-O {[%emt 0:00:26]} 5. Bd2 {[%emt 0:00:00]} b6 {[%emt 0:02:14]} 6. Bd3 {[%emt 0:02:50]} Bb7 {[%emt 0:00:16]} 7. f3 {[%emt 0:01:11]} d5 {[%emt 0:01:09]} 8. cxd5 {[%emt 0:00:23]} exd5 {[%emt 0:00:01]} 9. Nge2 {[%emt 0:00:13]} Re8 {[%emt 0:01:30]} 10. O-O {[%emt 0:08:07]} Bd6 {[%emt 0:01:13]} 11. Qe1 {[%emt 0:04:59]} c5 {[%emt 0:02:33]} 12. Qh4 {[%emt 0:00:14]} Ba6 {[%emt 0:12:41]} 13. Bxa6 {[%emt 0:03:12]} Nxa6 {[%emt 0:00:09]} 14. g4 {[%emt 0:00:51]} Nb4 {[%emt 0:01:30]} 15. Nb5 {[%emt 0:04:57]} Bb8 {[%emt 0:07:38]} 16. Na3 {[%emt 0:06:32]} Nd3 {[%emt 0:06:36]} 17. Rab1 {[%emt 0:02:37]} a6 {[%emt 0:04:13]} 18. Nc1 {[%emt 0:01:15]} Nxc1 {[%emt 0:05:13]} 19. Rbxc1 {[%emt 0:00:10]} Bd6 {[%emt 0:01:58]} 20. Nb1 {[%emt 0:01:56]} Rc8 {[%emt 0:05:49]} 21. Nc3 {[%emt 0:01:26]} cxd4 {[%emt 0:01:55]} 22. exd4 {[%emt 0:01:10]} Rc4 {[%emt 0:02:06]} 23. Bg5 {[%emt 0:06:43]} Rxd4 {[%emt 0:01:37]} 24. Bxf6 {[%emt 0:00:43]} gxf6 {[%emt 0:06:54]} 25. Rcd1 {[%emt 0:04:57]} Bc5 {[%emt 0:02:45]} 26. Kh1 {[%emt 0:04:47]} Re5 {[%emt 0:02:51]} 27. Rxd4 {[%emt 0:00:25]} Bxd4 {[%emt 0:00:02]} 28. g5 {[%emt 0:00:21]} Be3 {[%emt 0:13:24]} 29. gxf6 {[%emt 0:00:24]} Kh8 {[%emt 0:00:01]} 30. f4 {[%emt 0:14:16]} Re8 {[%emt 0:00:02]} 31. Qg3 {[%emt 0:03:53]} Qxf6 {[%emt 0:00:18]} 32. Nxd5 {[%emt 0:00:05]} Qc6 {[%emt 0:00:11]} 33. Qf3 {[%emt 0:00:45]} Bd4 {[%emt 0:01:01]} 34. b3 {[%emt 0:00:04]} f5 {[%emt 0:05:14]} 35. Nb4 {[%emt 0:03:02]} Qxf3+ {[%emt 0:05:02]} 36. Rxf3 {[%emt 0:00:25]} Re1+ {[%emt 0:00:04]} 37. Kg2 {[%emt 0:00:12]} a5 {[%emt 0:00:11]} 38. Nc6 {[%emt 0:01:01]} Bc5 {[%emt 0:00:12]} 39. a4 {[%emt 0:03:13]} Re2+ {[%emt 0:05:08]} 40. Kg3 {[%emt 0:04:24]} Kg7 {[%emt 0:01:25]} 41. Ne5 {[%emt 0:18:27]} Be3 {[%emt 0:04:19]} 42. Nc4 {[%emt 0:00:00]} Bg1 {[%emt 0:06:39]} 43. h3 {[%emt 0:00:00]} Bh2+ {[%emt 0:01:55]} 44. Kh4 {[%emt 0:00:00]} Kg6 {[%emt 0:03:20]} 45. Nxb6 {[%emt 0:00:00]} Kh6 {[%emt 0:04:12]} 46. Nc4 {[%emt 0:00:00]} Bg1 {[%emt 0:00:02]} 47. Kg3 {[%emt 0:00:00]} Bh2+ {[%emt 0:00:01]} 48. Kh4 {[%emt 0:00:00]} Bg1 {[%emt 0:00:13]} 49. Kg3 {[%emt 0:00:00]} 1/2-1/2

[Event "150 Years SG Braunschweig"]
[Site "Brunswick"]
[Date "2019.10.25"]
[Round "8.3"]
[White "Lubbe, Nikolas"]
[Black "Reuker, Jari"]
[Result "1-0"]
[ECO "D00"]
[WhiteElo "2431"]
[BlackElo "2394"]
[Annotator "NA"]
[PlyCount "93"]
[EventDate "2019.10.21"]
[EventType "tourn"]
[EventCountry "GER"]
[SourceTitle "playchess.com"]
[Source "ChessBase"]
[SourceQuality "1"]
[TimeControl "40/5400+30:900+30"]

{[%evp 12,89,-24,32767,-14,-27,-32,-43,-22,-45,-4,32767,0,-10,6,32767,32767,-63,32767,32767,32767,32767,32767,-39,-45,-89,-77,-143,-78,-98,-78,32767,-228,-209,-22,-33,0,0,98,0,10,25,15,12,22,5,25,0,8,14,215,236,286,326,340,310,302,318,427,431,423,460,508,503,32767,32767,32767,681,770,32767,32767,1124,1375,1576,1058,1079,2718,2225,4710,29980]} 1. d4 {[%emt 0:00:00]} Nf6 {[%emt 0:00:00]} 2. Bg5 {[%emt 0:00:00]} d5 {[%emt 0:00:03]} 3. e3 {[%emt 0:00:18]} c5 {[%emt 0:00:51]} 4. Bxf6 {[%emt 0:01:19]} gxf6 {[%emt 0:00:17]} 5. c3 {[%emt 0:02:13]} Nc6 {[%emt 0:05:23]} (5... Qb6 6. Qb3 Nc6 7. Nd2 cxd4 8. exd4 e5 9. Ngf3 Be6 10. Bb5 e4 11. Nh4 f5 12. g3 Bd6 13. Ng2 O-O {1-0 (48) Jobava,B (2702)-Matlakov,M (2694) Doha 2016}) 6. Nd2 {[%emt 0:03:31] D00: 1 d4 d5: Unusual lines} e5 {[%emt 0:03:48]} 7. Nb3 {[%emt 0:10:41]} c4 $146 {[%emt 0:19:16]} ({Predecessor:} 7... cxd4 8. exd4 e4 9. Qh5 f5 10. f4 Qf6 11. Nh3 Qg6 12. Qe2 Bd7 13. O-O-O {1-0 (68) Abhilash,R (2133)-Hansen,T (2429) Barcelona 2017}) 8. Nd2 {[%emt 0:00:08]} Be6 {[%emt 0:07:52]} 9. g3 {[%emt 0:05:53]} Qd7 {[%emt 0:13:44]} 10. Bg2 {[%emt 0:03:41]} Be7 {[%emt 0:11:26]} 11. Ne2 {[%emt 0:06:31]} O-O {[%emt 0:01:18]} 12. O-O {[%emt 0:05:00]} b5 {[%emt 0:00:09]} 13. f4 {[%emt 0:08:44]} e4 {[%emt 0:01:51]} 14. f5 {[%emt 0:00:49]} Bxf5 {[%emt 0:00:04]} 15. Nf4 {[%emt 0:00:10]} Bg4 {[%emt 0:02:56]} 16. Qe1 {[%emt 0:02:01]} Kh8 {[%emt 0:00:58]} 17. Qf2 {[%emt 0:07:59]} Rac8 {[%emt 0:06:05]} 18. h3 {[%emt 0:06:10]} Be6 $1 {[%emt 0:00:10]} 19. g4 {[%emt 0:04:48]} (19. Nxe4 $1 $15 dxe4 {[#]} 20. d5 $1 {[%mdl 512]}) 19... Rg8 {[%emt 0:01:08]} 20. Nh5 {[%emt 0:03:08]} Rg6 {[%emt 0:01:22]} 21. Rad1 {[%emt 0:00:50] [#]} Rcg8 $1 {[%emt 0:03:10]} 22. Nxe4 {[%emt 0:04:38]} f5 {[%emt 0:04:47]} (22... dxe4 $17 23. Nf4 Bd5 24. Nxd5 Qxd5) 23. Nc5 {[%emt 0:00:41]} Bxc5 {[%emt 0:00:47]} ({Black should try} 23... Qc8 $15 24. Nf4 Rh6 25. Ncxe6 (25. Nfxe6 fxe6 26. gxf5 Rxh3 $19) 25... fxg4 26. hxg4 fxe6) 24. dxc5 {[%emt 0:00:02]} Ne5 {[%emt 0:03:32]} (24... Qe7 $11) 25. e4 {[%emt 0:08:18]} (25. Qf4 $16 Nc6 26. Kh1 {[%mdl 64] Decoy}) 25... fxg4 {[%emt 0:00:56]} 26. Qd4 {[%emt 0:00:52]} Qc7 {[%emt 0:01:22]} ({Wrong is} 26... gxh3 $2 27. Qxe5+ f6 28. Rxf6 $18) 27. h4 {[%emt 0:00:39]} dxe4 $1 {[%emt 0:03:57]} 28. Bxe4 {[%emt 0:00:35]} Rh6 {[%emt 0:00:22]} 29. Nf6 {[%emt 0:01:19]} Rc8 {[%emt 0:02:39]} 30. Bg2 {[%emt 0:02:28]} Rxh4 $2 {[%emt 0:00:28] [#]} (30... Rxf6 $11 {and Black stays safe.} 31. Rxf6 Qxc5) 31. Rfe1 $1 {[%emt 0:02:55]} Qxc5 {[%emt 0:03:34]} 32. Rxe5 {[%emt 0:00:44]} Qxd4+ {[%emt 0:00:01]} 33. cxd4 {[%emt 0:00:42]} Kg7 {[%emt 0:00:20]} 34. Nh5+ {[%emt 0:01:14]} Rxh5 {[%emt 0:01:49]} 35. Rxh5 {[%emt 0:00:15]} f5 {[%emt 0:00:03]} 36. d5 {[%emt 0:03:14]} Bd7 {[%emt 0:00:27]} 37. Kf2 {[%emt 0:00:56]} c3 {[%emt 0:00:03]} 38. bxc3 {[%emt 0:00:27]} Rxc3 {[%emt 0:00:03]} 39. Rdh1 {[%emt 0:00:26]} Rc2+ {[%emt 0:00:37]} 40. Kg3 {[%emt 0:00:39]} Kf6 {[%emt 0:00:37]} 41. Rh6+ {[%emt 0:17:03]} Ke5 {[%emt 0:16:08]} 42. Re1+ {[%emt 0:01:50]} Kd4 {[%emt 0:00:04]} 43. Rxh7 {[%emt 0:00:26]} Bc8 {[%emt 0:01:02]} 44. Rxa7 {[%emt 0:00:00]} b4 {[%emt 0:00:00]} 45. d6 {[%emt 0:00:00]} f4+ {[%emt 0:00:00]} 46. Kxf4 {[%emt 0:00:00]} Rxg2 {[%emt 0:00:00]} 47. Rd1+ {[%emt 0:04:13] Kd5 Ke4+} 1-0

[Event "150 Years SG Braunschweig"]
[Site "Brunswick"]
[Date "2019.10.25"]
[Round "8.4"]
[White "Ovsejevitsch, Sergei"]
[Black "Olsen, Filip Boe"]
[Result "1-0"]
[ECO "D30"]
[WhiteElo "2617"]
[BlackElo "2380"]
[Annotator "ChessBase"]
[PlyCount "123"]
[EventDate "2019.10.21"]
[EventType "tourn"]
[EventCountry "GER"]
[SourceTitle "playchess.com"]
[Source "ChessBase"]
[SourceQuality "1"]
[TimeControl "40/5400+30:900+30"]

1. Nf3 {[%emt 0:00:00]} d5 {[%emt 0:00:28]} 2. d4 {[%emt 0:00:00]} Nf6 {[%emt 0:00:12]} 3. c4 {[%emt 0:00:00]} e6 {[%emt 0:00:09]} 4. e3 {[%emt 0:01:13]} a6 {[%emt 0:00:22]} 5. b3 {[%emt 0:00:58]} c5 {[%emt 0:00:21]} 6. Bb2 {[%emt 0:00:23]} cxd4 {[%emt 0:00:56]} 7. exd4 {[%emt 0:00:08]} b6 {[%emt 0:00:30]} 8. Bd3 {[%emt 0:00:42]} Bb7 {[%emt 0:01:04]} 9. O-O {[%emt 0:00:14]} Bd6 {[%emt 0:02:09]} 10. Nbd2 {[%emt 0:07:06]} O-O {[%emt 0:00:50]} 11. Qe2 {[%emt 0:01:55]} Nbd7 {[%emt 0:05:38]} 12. Ne5 {[%emt 0:03:29]} Qe7 {[%emt 0:06:06]} 13. Rad1 {[%emt 0:04:29]} Rfd8 {[%emt 0:03:03]} 14. Ndf3 {[%emt 0:04:42]} dxc4 {[%emt 0:03:02]} 15. bxc4 {[%emt 0:01:04]} Nf8 {[%emt 0:02:50]} 16. Ng5 {[%emt 0:15:21]} Bxe5 {[%emt 0:14:16]} 17. dxe5 {[%emt 0:00:43]} Ne8 {[%emt 0:02:21]} 18. Qe3 {[%emt 0:06:20]} h6 {[%emt 0:09:35]} 19. Ne4 {[%emt 0:10:20]} Rac8 {[%emt 0:09:49]} 20. Nd6 {[%emt 0:03:35]} Nxd6 {[%emt 0:03:53]} 21. exd6 {[%emt 0:00:08]} Qg5 {[%emt 0:02:04]} 22. Qxg5 {[%emt 0:00:27]} hxg5 {[%emt 0:00:02]} 23. f4 {[%emt 0:05:58]} g4 {[%emt 0:06:32]} 24. f5 {[%emt 0:03:20]} exf5 {[%emt 0:13:53]} 25. Bxf5 {[%emt 0:02:15]} Rxc4 {[%emt 0:00:13]} 26. Be5 {[%emt 0:00:41]} Ne6 {[%emt 0:01:25]} 27. Bg3 {[%emt 0:03:16]} Ra4 {[%emt 0:04:09]} 28. Rf2 {[%emt 0:01:24]} Nc5 {[%emt 0:03:00]} 29. d7 {[%emt 0:02:53]} Bc6 {[%emt 0:02:13]} 30. Rfd2 {[%emt 0:03:00]} Bxd7 {[%emt 0:01:43]} 31. Bxd7 {[%emt 0:00:16]} Rxd7 {[%emt 0:00:09]} 32. Rxd7 {[%emt 0:00:06]} Nxd7 {[%emt 0:00:04]} 33. Rxd7 {[%emt 0:00:04]} Rxa2 {[%emt 0:00:17]} 34. Rd4 {[%emt 0:07:43]} b5 {[%emt 0:00:52]} 35. Rxg4 {[%emt 0:03:55]} f6 {[%emt 0:00:38]} 36. Rb4 {[%emt 0:00:43]} Kf7 {[%emt 0:00:56]} 37. h4 {[%emt 0:01:11]} g5 {[%emt 0:01:29]} 38. Kh2 {[%emt 0:04:25]} Ke6 {[%emt 0:00:32]} 39. Kh3 {[%emt 0:01:41]} Rc2 {[%emt 0:00:37]} 40. Rb1 {[%emt 0:02:12]} Ra2 {[%emt 0:00:40]} 41. Be1 {[%emt 0:04:31]} Ra4 {[%emt 0:04:25]} 42. g3 {[%emt 0:04:20]} Kf5 {[%emt 0:02:07]} 43. Rb4 {[%emt 0:03:14]} Ra3 {[%emt 0:01:38]} 44. Kg2 {[%emt 0:00:31]} Ra2+ {[%emt 0:01:10]} 45. Kf3 {[%emt 0:00:39]} Ra3+ {[%emt 0:01:07]} 46. Ke2 {[%emt 0:00:13]} Kg6 {[%emt 0:00:10]} 47. Kd2 {[%emt 0:01:32]} Ra1 {[%emt 0:01:12]} 48. Ke2 {[%emt 0:01:12]} Ra3 {[%emt 0:00:04]} 49. Bf2 {[%emt 0:00:48]} Ra2+ {[%emt 0:00:30]} 50. Kf3 {[%emt 0:00:25]} Ra3+ {[%emt 0:00:05]} 51. Be3 {[%emt 0:00:24]} Kf5 {[%emt 0:00:35]} 52. g4+ {[%emt 0:00:27]} Kg6 {[%emt 0:00:55]} 53. hxg5 {[%emt 0:04:54]} fxg5 {[%emt 0:00:03]} 54. Rd4 {[%emt 0:00:00]} a5 {[%emt 0:00:34]} 55. Rd5 {[%emt 0:00:00]} b4 {[%emt 0:00:06]} 56. Rxg5+ {[%emt 0:00:00]} Kf6 {[%emt 0:00:18]} 57. Rb5 {[%emt 0:00:00]} Kf7 {[%emt 0:00:55]} 58. g5 {[%emt 0:00:00]} Kg6 {[%emt 0:01:33]} 59. Kf4 {[%emt 0:00:14]} b3 {[%emt 0:00:50]} 60. Rb6+ {[%emt 0:00:08]} Kf7 {[%emt 0:00:19]} 61. g6+ {[%emt 0:00:12]} Kg8 {[%emt 0:01:15]} 62. Bd4 {[%emt 0:00:11]} 1-0